[Event "*** Titled Tuesday Blitz"]
[Site "Chess.com"]
[Date "2020.04.07"]
[Round "7"]
[White "Vamostodorecto"]
[Black "IAgrest"]
[Result "1-0"]
[WhiteElo "2417"]
[BlackElo "2191"]
[TimeControl "180+1"]
[EndTime "14:18:28 PDT"]
[Termination "Vamostodorecto won by resignation"]

1. d4 {[%clk 0:03:00.9]} 1... Nf6 {[%clk 0:02:59.7]} 2. c4 {[%clk 0:03:00.3]}
2... g6 {[%clk 0:02:59.9]} 3. Nc3 {[%clk 0:03:00.4]} 3... Bg7 {[%clk 0:03:00.5]}
4. e4 {[%clk 0:03:00.6]} 4... d6 {[%clk 0:03:00.2]} 5. Be2 {[%clk 0:03:01.3]}
5... O-O {[%clk 0:02:59.7]} 6. Nf3 {[%clk 0:03:01.9]} 6... Nbd7 {[%clk
0:02:52.7]} 7. O-O {[%clk 0:03:00.6]} 7... e5 {[%clk 0:02:52.8]} 8. Re1 {[%clk
0:02:59.4]} 8... Re8 {[%clk 0:02:47.3]} 9. Bf1 {[%clk 0:02:58.2]} 9... c6 {[%clk
0:02:45.8]} 10. d5 {[%clk 0:02:57.3]} 10... Nf8 {[%clk 0:02:34.9]} 11. Bg5
{[%clk 0:02:49.2]} 11... h6 {[%clk 0:02:34]} 12. Be3 {[%clk 0:02:36.9]} 12... c5
{[%clk 0:02:03.4]} 13. Nd2 {[%clk 0:02:32.1]} 13... Ng4 {[%clk 0:02:00.6]} 14.
Bd3 {[%clk 0:02:16.9]} 14... f5 {[%clk 0:01:56.6]} 15. f3 {[%clk 0:01:57.7]}
15... Nxe3 {[%clk 0:01:51.4]} 16. Rxe3 {[%clk 0:01:58.6]} 16... h5 {[%clk
0:01:42.6]} 17. Qc2 {[%clk 0:01:56.7]} 17... Bh6 {[%clk 0:01:39.5]} 18. Re2
{[%clk 0:01:56.5]} 18... Qg5 {[%clk 0:01:35.7]} 19. Rf1 {[%clk 0:01:47.6]} 19...
h4 {[%clk 0:01:14]} 20. Nb5 {[%clk 0:01:42.9]} 20... Rd8 {[%clk 0:01:06]} 21. f4
{[%clk 0:01:35]} 21... exf4 {[%clk 0:01:01.4]} 22. Nf3 {[%clk 0:01:34.9]} 22...
Qf6 {[%clk 0:00:55.4]} 23. exf5 {[%clk 0:01:18.2]} 23... g5 {[%clk 0:00:52]} 24.
h3 {[%clk 0:01:14]} 24... Bg7 {[%clk 0:00:40.4]} 25. Nh2 {[%clk 0:01:12.4]}
25... Qf7 {[%clk 0:00:28.5]} 26. Rfe1 {[%clk 0:01:06.1]} 26... a6 {[%clk
0:00:17.8]} 27. Re7 {[%clk 0:01:04.9]} 27... Qf6 {[%clk 0:00:16.7]} 28. Nc7
{[%clk 0:00:58.5]} 28... Rb8 {[%clk 0:00:14.7]} 29. Ne8 {[%clk 0:00:50.5]} 29...
Rxe8 {[%clk 0:00:14.4]} 30. Rxe8 {[%clk 0:00:51.4]} 30... b5 {[%clk 0:00:14.5]}
31. Ng4 {[%clk 0:00:48]} 31... Qd4+ {[%clk 0:00:13.3]} 32. Kh2 {[%clk
0:00:44.9]} 32... bxc4 {[%clk 0:00:13.3]} 33. Qxc4 {[%clk 0:00:41.1]} 33... Rxb2
{[%clk 0:00:08.6]} 34. Qxd4 {[%clk 0:00:34.2]} 34... Bxd4 {[%clk 0:00:07.5]} 35.
Rxc8 {[%clk 0:00:32.8]} 1-0

[Event "*** Titled Tuesday Blitz"]
[Site "Chess.com"]
[Date "2020.04.07"]
[Round "7"]
[White "bascheyaro"]
[Black "Rish_97"]
[Result "1-0"]
[WhiteElo "2761"]
[BlackElo "2570"]
[TimeControl "180+1"]
[EndTime "14:18:31 PDT"]
[Termination "bascheyaro won by resignation"]

1. d4 {[%clk 0:03:00.9]} 1... d5 {[%clk 0:02:58.7]} 2. c4 {[%clk 0:02:53.9]}
2... c6 {[%clk 0:02:58.4]} 3. Nc3 {[%clk 0:02:54.1]} 3... Nf6 {[%clk 0:02:57.4]}
4. Nf3 {[%clk 0:02:52.9]} 4... e6 {[%clk 0:02:57.3]} 5. Bg5 {[%clk 0:02:52.9]}
5... Nbd7 {[%clk 0:02:57.3]} 6. e3 {[%clk 0:02:53.3]} 6... h6 {[%clk 0:02:57.7]}
7. Bh4 {[%clk 0:02:53.3]} 7... g5 {[%clk 0:02:58.2]} 8. Bg3 {[%clk 0:02:53.3]}
8... Nh5 {[%clk 0:02:59.1]} 9. Be5 {[%clk 0:02:51.2]} 9... Nhf6 {[%clk
0:02:52.8]} 10. cxd5 {[%clk 0:02:48.3]} 10... exd5 {[%clk 0:02:36.3]} 11. Bd3
{[%clk 0:02:32.5]} 11... Nxe5 {[%clk 0:01:51.5]} 12. Nxe5 {[%clk 0:02:32.4]}
12... Bg7 {[%clk 0:01:45]} 13. h4 {[%clk 0:02:31.8]} 13... g4 {[%clk 0:01:43.8]}
14. h5 {[%clk 0:02:31.9]} 14... Be6 {[%clk 0:01:43.6]} 15. Ne2 {[%clk 0:02:31]}
15... Qb6 {[%clk 0:01:42.4]} 16. Nf4 {[%clk 0:02:30.3]} 16... O-O-O {[%clk
0:01:20.8]} 17. O-O {[%clk 0:02:22.3]} 17... Bf8 {[%clk 0:01:17]} 18. Nxe6
{[%clk 0:02:19.8]} 18... fxe6 {[%clk 0:01:17.9]} 19. Nxg4 {[%clk 0:02:20.1]}
19... Nxh5 {[%clk 0:01:15]} 20. Bg6 {[%clk 0:02:19.9]} 20... Ng7 {[%clk
0:01:14.5]} 21. Ne5 {[%clk 0:02:20.2]} 21... Rg8 {[%clk 0:00:55.7]} 22. Bf7
{[%clk 0:02:19.5]} 22... Rh8 {[%clk 0:00:55.8]} 23. Qg4 {[%clk 0:02:17.9]} 23...
Qc7 {[%clk 0:00:51.7]} 24. Bxe6+ {[%clk 0:02:17.1]} 24... Kb8 {[%clk 0:00:49]}
25. Nf7 {[%clk 0:02:16.5]} 25... h5 {[%clk 0:00:47.5]} 26. Qh3 {[%clk
0:02:16.3]} 26... Bd6 {[%clk 0:00:34.6]} 27. Nxh8 {[%clk 0:02:13]} 27... Rxh8
{[%clk 0:00:35.5]} 28. f4 {[%clk 0:02:09.7]} 28... Qe7 {[%clk 0:00:35.5]} 29. f5
{[%clk 0:02:09.8]} 29... Qf6 {[%clk 0:00:34.6]} 30. Rf3 {[%clk 0:02:08.4]} 30...
h4 {[%clk 0:00:34.9]} 31. Qg4 {[%clk 0:01:52.3]} 31... Nh5 {[%clk 0:00:34.4]}
32. Qg6 {[%clk 0:01:48.5]} 32... Qe7 {[%clk 0:00:34.3]} 33. Qf7 {[%clk
0:01:42.5]} 33... Qg5 {[%clk 0:00:34.1]} 34. Qg6 {[%clk 0:01:35.5]} 34... Qe7
{[%clk 0:00:33.8]} 35. a3 {[%clk 0:01:27.2]} 35... Ng3 {[%clk 0:00:25.8]} 36. b4
{[%clk 0:01:17.6]} 36... a6 {[%clk 0:00:25.4]} 37. Rb1 {[%clk 0:01:12.6]} 37...
Rh7 {[%clk 0:00:23.8]} 38. Qg8+ {[%clk 0:01:08.7]} 38... Ka7 {[%clk 0:00:23.4]}
39. f6 {[%clk 0:01:09.1]} 39... Qc7 {[%clk 0:00:15.3]} 40. f7 {[%clk 0:01:09.1]}
40... h3 {[%clk 0:00:11]} 41. Qxh7 {[%clk 0:01:07.9]} 41... h2+ {[%clk
0:00:08.6]} 42. Kxh2 {[%clk 0:01:04.7]} 42... Ne4+ {[%clk 0:00:08.4]} 43. Kg1
{[%clk 0:01:04.9]} 43... Nd2 {[%clk 0:00:05.1]} 44. Rbf1 {[%clk 0:01:03.1]}
44... Nxf1 {[%clk 0:00:04.8]} 45. Rxf1 {[%clk 0:01:02.6]} 1-0

[Event "*** Titled Tuesday Blitz"]
[Site "Chess.com"]
[Date "2020.04.07"]
[Round "7"]
[White "Vuk2000"]
[Black "TwentyHoursADay"]
[Result "0-1"]
[WhiteElo "2623"]
[BlackElo "2533"]
[TimeControl "180+1"]
[EndTime "14:18:31 PDT"]
[Termination "TwentyHoursADay won by resignation"]

1. e4 {[%clk 0:03:00.9]} 1... c5 {[%clk 0:02:59]} 2. g3 {[%clk 0:02:57.6]} 2...
Nc6 {[%clk 0:02:53.7]} 3. Bg2 {[%clk 0:02:56.9]} 3... g6 {[%clk 0:02:54.1]} 4.
Ne2 {[%clk 0:02:56.7]} 4... Bg7 {[%clk 0:02:54.5]} 5. c3 {[%clk 0:02:57.6]} 5...
e5 {[%clk 0:02:54.8]} 6. O-O {[%clk 0:02:55.8]} 6... Nge7 {[%clk 0:02:54.8]} 7.
d3 {[%clk 0:02:56.7]} 7... d6 {[%clk 0:02:54.8]} 8. Be3 {[%clk 0:02:57]} 8...
O-O {[%clk 0:02:54]} 9. Nd2 {[%clk 0:02:55.5]} 9... Be6 {[%clk 0:02:48]} 10. f4
{[%clk 0:02:54.8]} 10... f5 {[%clk 0:02:46.7]} 11. fxe5 {[%clk 0:02:50.6]} 11...
Nxe5 {[%clk 0:02:45.1]} 12. Nf4 {[%clk 0:02:46.1]} 12... Bf7 {[%clk 0:02:45.2]}
13. d4 {[%clk 0:02:45.3]} 13... Ng4 {[%clk 0:02:42.3]} 14. Qe2 {[%clk
0:02:39.7]} 14... Nxe3 {[%clk 0:02:41.3]} 15. Qxe3 {[%clk 0:02:39.4]} 15... cxd4
{[%clk 0:02:37.6]} 16. cxd4 {[%clk 0:02:38.9]} 16... Qb6 {[%clk 0:02:28.6]} 17.
Ne2 {[%clk 0:02:29.6]} 17... fxe4 {[%clk 0:02:09.4]} 18. Bxe4 {[%clk 0:02:25.2]}
18... Rae8 {[%clk 0:02:02.9]} 19. Qd3 {[%clk 0:02:24.1]} 19... Nc6 {[%clk
0:01:36]} 20. Nc4 {[%clk 0:02:16.2]} 20... Qc7 {[%clk 0:01:08.2]} 21. Ne3 {[%clk
0:01:31.8]} 21... Nb4 {[%clk 0:01:03.2]} 22. Qb1 {[%clk 0:01:31.5]} 22... Qe7
{[%clk 0:00:53.9]} 23. Nc3 {[%clk 0:01:14.1]} 23... Bxd4 {[%clk 0:00:51.9]} 24.
Re1 {[%clk 0:01:14.4]} 24... d5 {[%clk 0:00:45.7]} 25. a3 {[%clk 0:01:10.8]}
25... Nc6 {[%clk 0:00:36.8]} 26. Bxd5 {[%clk 0:01:10.1]} 26... Bxe3+ {[%clk
0:00:36.2]} 27. Kg2 {[%clk 0:01:06.6]} 27... Qc5 {[%clk 0:00:31.4]} 28. Bf3
{[%clk 0:00:53]} 28... Nd4 {[%clk 0:00:27.9]} 29. Ne4 {[%clk 0:00:52.3]} 29...
Qc2+ {[%clk 0:00:27.5]} 30. Qxc2 {[%clk 0:00:49.4]} 30... Nxc2 {[%clk
0:00:28.4]} 31. Nf6+ {[%clk 0:00:49.5]} 31... Kh8 {[%clk 0:00:26.3]} 32. Nxe8
{[%clk 0:00:46.7]} 32... Nxe1+ {[%clk 0:00:26.5]} 33. Rxe1 {[%clk 0:00:45.1]}
33... Rxe8 {[%clk 0:00:26.7]} 34. Bxb7 {[%clk 0:00:45.1]} 34... Kg7 {[%clk
0:00:23.6]} 35. Bc6 {[%clk 0:00:42.4]} 35... Re7 {[%clk 0:00:22.3]} 36. h4
{[%clk 0:00:32.5]} 36... Bc5 {[%clk 0:00:22.3]} 37. Rc1 {[%clk 0:00:32.4]} 37...
Re2+ {[%clk 0:00:21.2]} 38. Kh3 {[%clk 0:00:27.5]} 38... Be6+ {[%clk 0:00:18.8]}
39. g4 {[%clk 0:00:27]} 39... Bd6 {[%clk 0:00:19.4]} 40. Bg2 {[%clk 0:00:21.2]}
40... Re3+ {[%clk 0:00:19.3]} 0-1

[Event "*** Titled Tuesday Blitz"]
[Site "Chess.com"]
[Date "2020.04.07"]
[Round "7"]
[White "The_Machine04"]
[Black "Qingdom"]
[Result "1-0"]
[WhiteElo "2369"]
[BlackElo "2134"]
[TimeControl "180+1"]
[EndTime "14:18:31 PDT"]
[Termination "The_Machine04 won on time"]

1. d4 {[%clk 0:03:00.2]} 1... Nf6 {[%clk 0:02:59.9]} 2. Bg5 {[%clk 0:03:00.3]}
2... d5 {[%clk 0:02:56.9]} 3. e3 {[%clk 0:02:59.4]} 3... Nbd7 {[%clk 0:02:56]}
4. f4 {[%clk 0:02:57.2]} 4... h6 {[%clk 0:02:54]} 5. Bxf6 {[%clk 0:02:56.8]}
5... exf6 {[%clk 0:02:54.1]} 6. Bd3 {[%clk 0:02:50.3]} 6... Bd6 {[%clk
0:02:52.7]} 7. Nf3 {[%clk 0:02:48]} 7... O-O {[%clk 0:02:52.5]} 8. O-O {[%clk
0:02:46.7]} 8... Re8 {[%clk 0:02:52.7]} 9. Re1 {[%clk 0:02:46.3]} 9... c5 {[%clk
0:02:48]} 10. c3 {[%clk 0:02:42.4]} 10... Nb6 {[%clk 0:02:41.8]} 11. Nbd2 {[%clk
0:02:33.1]} 11... Bg4 {[%clk 0:02:41.1]} 12. h3 {[%clk 0:02:28.9]} 12... Bxf3
{[%clk 0:02:41.1]} 13. Qxf3 {[%clk 0:02:26.4]} 13... Qd7 {[%clk 0:02:26.6]} 14.
Rad1 {[%clk 0:02:08.9]} 14... Na4 {[%clk 0:02:21.4]} 15. Rb1 {[%clk 0:01:57]}
15... Bf8 {[%clk 0:02:15.1]} 16. Qf1 {[%clk 0:01:51.4]} 16... a6 {[%clk
0:02:13.6]} 17. Bc2 {[%clk 0:01:45]} 17... b5 {[%clk 0:02:08.6]} 18. Qd3 {[%clk
0:01:40.3]} 18... g6 {[%clk 0:02:06.4]} 19. f5 {[%clk 0:01:32.2]} 19... g5
{[%clk 0:01:54.8]} 20. Bxa4 {[%clk 0:01:30.6]} 20... bxa4 {[%clk 0:01:52.4]} 21.
Nf3 {[%clk 0:01:25.5]} 21... Qb5 {[%clk 0:01:44.7]} 22. Qd2 {[%clk 0:01:20.4]}
22... Rab8 {[%clk 0:01:35.8]} 23. a3 {[%clk 0:01:09.4]} 23... Rb6 {[%clk
0:01:26.4]} 24. Re2 {[%clk 0:01:07.4]} 24... Reb8 {[%clk 0:01:21.6]} 25. Ne1
{[%clk 0:00:56.2]} 25... cxd4 {[%clk 0:01:08.8]} 26. exd4 {[%clk 0:00:49.1]}
26... Bxa3 {[%clk 0:01:07.7]} 27. Nd3 {[%clk 0:00:49.3]} 27... Bf8 {[%clk
0:00:52.3]} 28. Ra1 {[%clk 0:00:43.4]} 28... Re8 {[%clk 0:00:38.5]} 29. Rxe8
{[%clk 0:00:35.3]} 29... Qxe8 {[%clk 0:00:38.2]} 30. Qe1 {[%clk 0:00:31.3]}
30... Qxe1+ {[%clk 0:00:33.9]} 31. Rxe1 {[%clk 0:00:32.2]} 31... a3 {[%clk
0:00:33.5]} 32. bxa3 {[%clk 0:00:30.3]} 32... Bxa3 {[%clk 0:00:33.1]} 33. Re8+
{[%clk 0:00:30]} 33... Kg7 {[%clk 0:00:31.2]} 34. Rd8 {[%clk 0:00:28.1]} 34...
Rb3 {[%clk 0:00:25.9]} 35. Rc8 {[%clk 0:00:23.3]} 1-0

[Event "*** Titled Tuesday Blitz"]
[Site "Chess.com"]
[Date "2020.04.07"]
[Round "7"]
[White "Rubinstein_Akiba"]
[Black "H3nriqueTV"]
[Result "1-0"]
[WhiteElo "2353"]
[BlackElo "2176"]
[TimeControl "180+1"]
[EndTime "14:18:32 PDT"]
[Termination "Rubinstein_Akiba won by checkmate"]

1. e4 {[%clk 0:03:00.9]} 1... c5 {[%clk 0:02:57.6]} 2. Be2 {[%clk 0:03:00.2]}
2... b6 {[%clk 0:02:57]} 3. f4 {[%clk 0:02:57.8]} 3... Bb7 {[%clk 0:02:57.1]} 4.
d3 {[%clk 0:02:58.2]} 4... e6 {[%clk 0:02:56.2]} 5. Nf3 {[%clk 0:02:57.1]} 5...
Nc6 {[%clk 0:02:56.6]} 6. O-O {[%clk 0:02:55.6]} 6... Nf6 {[%clk 0:02:57.2]} 7.
c3 {[%clk 0:02:49.3]} 7... d5 {[%clk 0:02:56.4]} 8. e5 {[%clk 0:02:48.5]} 8...
Nd7 {[%clk 0:02:56.5]} 9. d4 {[%clk 0:02:45.9]} 9... Qe7 {[%clk 0:02:51.1]} 10.
a4 {[%clk 0:02:37.9]} 10... a5 {[%clk 0:02:48.7]} 11. Be3 {[%clk 0:02:30.5]}
11... f6 {[%clk 0:02:41.8]} 12. Na3 {[%clk 0:02:26.9]} 12... Qd8 {[%clk
0:02:22.6]} 13. Nb5 {[%clk 0:02:03.4]} 13... Ba6 {[%clk 0:02:22.2]} 14. exf6
{[%clk 0:01:53.1]} 14... gxf6 {[%clk 0:02:14.5]} 15. f5 {[%clk 0:01:52.6]} 15...
e5 {[%clk 0:02:11.6]} 16. dxe5 {[%clk 0:01:52.1]} 16... Ndxe5 {[%clk 0:02:11.6]}
17. Nxe5 {[%clk 0:01:51.9]} 17... Nxe5 {[%clk 0:02:11.8]} 18. Bh5+ {[%clk
0:01:50.1]} 18... Ke7 {[%clk 0:02:10.1]} 19. Re1 {[%clk 0:01:48.2]} 19... Bxb5
{[%clk 0:02:09.4]} 20. axb5 {[%clk 0:01:47.3]} 20... Qd6 {[%clk 0:02:03.4]} 21.
Bf4 {[%clk 0:01:38.7]} 21... Rg8 {[%clk 0:02:02.7]} 22. Bf3 {[%clk 0:01:26.9]}
22... Rd8 {[%clk 0:01:58.3]} 23. b4 {[%clk 0:01:24.7]} 23... cxb4 {[%clk
0:01:52.2]} 24. cxb4 {[%clk 0:01:24.3]} 24... Qxb4 {[%clk 0:01:05.3]} 25. Bxe5
{[%clk 0:01:19.3]} 25... fxe5 {[%clk 0:01:06.2]} 26. Rxe5+ {[%clk 0:01:19.4]}
26... Kf7 {[%clk 0:00:58.6]} 27. Bxd5+ {[%clk 0:01:18.9]} 27... Kg7 {[%clk
0:00:58.3]} 28. f6+ {[%clk 0:01:01.6]} 28... Kh8 {[%clk 0:00:55.8]} 29. Kh1
{[%clk 0:00:44.7]} 29... Qf4 {[%clk 0:00:35.1]} 30. Qe2 {[%clk 0:00:34.2]} 30...
Bd6 {[%clk 0:00:28.5]} 31. Rh5 {[%clk 0:00:27]} 31... Rgf8 {[%clk 0:00:17.4]}
32. Rf1 {[%clk 0:00:22]} 32... Qd4 {[%clk 0:00:13.8]} 33. Rxh7+ {[%clk
0:00:20.6]} 33... Kxh7 {[%clk 0:00:13.5]} 34. Qh5# {[%clk 0:00:20.7]} 1-0

[Event "*** Titled Tuesday Blitz"]
[Site "Chess.com"]
[Date "2020.04.07"]
[Round "7"]
[White "Algeriano22"]
[Black "Rogue_King"]
[Result "1-0"]
[WhiteElo "2657"]
[BlackElo "2223"]
[TimeControl "180+1"]
[EndTime "14:18:32 PDT"]
[Termination "Algeriano22 won by resignation"]

1. e4 {[%clk 0:02:59.6]} 1... c6 {[%clk 0:02:58.4]} 2. d4 {[%clk 0:02:59.2]}
2... d5 {[%clk 0:02:59.3]} 3. e5 {[%clk 0:02:59.5]} 3... Bf5 {[%clk 0:02:58.4]}
4. h4 {[%clk 0:02:59.8]} 4... h5 {[%clk 0:02:57.8]} 5. c4 {[%clk 0:03:00.2]}
5... e6 {[%clk 0:02:57.7]} 6. Nc3 {[%clk 0:03:00.6]} 6... Ne7 {[%clk 0:02:57.4]}
7. Nge2 {[%clk 0:02:59.4]} 7... Nd7 {[%clk 0:02:56.6]} 8. Ng3 {[%clk 0:02:59.3]}
8... dxc4 {[%clk 0:02:49.5]} 9. Bxc4 {[%clk 0:02:54.2]} 9... Nb6 {[%clk
0:02:48.6]} 10. Bb3 {[%clk 0:02:53.3]} 10... Bg6 {[%clk 0:01:56.6]} 11. Bg5
{[%clk 0:02:51.8]} 11... Qd7 {[%clk 0:01:54.8]} 12. Nce4 {[%clk 0:02:37.3]}
12... Bxe4 {[%clk 0:01:40.9]} 13. Nxe4 {[%clk 0:02:36]} 13... Nf5 {[%clk
0:01:41.2]} 14. O-O {[%clk 0:02:33.4]} 14... Qxd4 {[%clk 0:01:38]} 15. Qf3
{[%clk 0:02:28.8]} 15... Qxe5 {[%clk 0:01:31.7]} 16. Rfe1 {[%clk 0:02:28.4]}
16... Qa5 {[%clk 0:00:46.3]} 17. a3 {[%clk 0:01:56.2]} 17... Be7 {[%clk
0:00:29.9]} 18. Bxe7 {[%clk 0:01:50.5]} 18... Kxe7 {[%clk 0:00:30.8]} 19. Ng5
{[%clk 0:01:44.4]} 19... Rh6 {[%clk 0:00:25.3]} 20. Rad1 {[%clk 0:01:35.8]}
20... Re8 {[%clk 0:00:24.4]} 21. Qf4 {[%clk 0:01:28.6]} 21... Kf8 {[%clk
0:00:20.4]} 22. Re5 {[%clk 0:01:27.2]} 22... Nd5 {[%clk 0:00:17.4]} 23. Nf3
{[%clk 0:01:07.9]} 23... Nxf4 {[%clk 0:00:15.7]} 24. Rxa5 {[%clk 0:01:07.8]}
24... a6 {[%clk 0:00:14.4]} 25. Rd7 {[%clk 0:01:03]} 25... Rg6 {[%clk
0:00:14.4]} 26. g3 {[%clk 0:01:00.4]} 26... Nd5 {[%clk 0:00:10.8]} 27. Rxb7
{[%clk 0:00:55.9]} 27... Rc8 {[%clk 0:00:09.1]} 28. Rxa6 {[%clk 0:00:53.5]}
28... Rf6 {[%clk 0:00:07.4]} 29. Ne5 {[%clk 0:00:53]} 29... Nd6 {[%clk
0:00:07.1]} 30. Rba7 {[%clk 0:00:48.2]} 30... Ne4 {[%clk 0:00:06.8]} 31. Nd7+
{[%clk 0:00:46.7]} 31... Kg8 {[%clk 0:00:05.8]} 32. Nxf6+ {[%clk 0:00:46.9]}
32... Ndxf6 {[%clk 0:00:06.7]} 33. Ra8 {[%clk 0:00:47.3]} 33... Rxa8 {[%clk
0:00:05.8]} 34. Rxa8+ {[%clk 0:00:47.7]} 34... Kh7 {[%clk 0:00:06.7]} 35. Bc2
{[%clk 0:00:48.3]} 35... Kh6 {[%clk 0:00:04.2]} 36. Rh8+ {[%clk 0:00:44.8]}
36... Kg6 {[%clk 0:00:03.7]} 37. f3 {[%clk 0:00:44.3]} 1-0

[Event "*** Titled Tuesday Blitz"]
[Site "Chess.com"]
[Date "2020.04.07"]
[Round "7"]
[White "Mikhail_Golubev"]
[Black "EugeneRougon"]
[Result "1-0"]
[WhiteElo "2540"]
[BlackElo "2702"]
[TimeControl "180+1"]
[EndTime "14:18:33 PDT"]
[Termination "Mikhail_Golubev won by checkmate"]

1. e4 {[%clk 0:03:00.5]} 1... e6 {[%clk 0:02:59.9]} 2. d4 {[%clk 0:02:59.9]}
2... d5 {[%clk 0:02:59.9]} 3. Nc3 {[%clk 0:03:00]} 3... Bb4 {[%clk 0:02:59.8]}
4. e5 {[%clk 0:03:00]} 4... c5 {[%clk 0:02:59.6]} 5. a3 {[%clk 0:03:00.3]} 5...
Bxc3+ {[%clk 0:03:00]} 6. bxc3 {[%clk 0:03:00.4]} 6... Ne7 {[%clk 0:03:00.7]} 7.
a4 {[%clk 0:03:00.7]} 7... Nbc6 {[%clk 0:02:54.5]} 8. Nf3 {[%clk 0:03:00.2]}
8... Qa5 {[%clk 0:02:49.2]} 9. Bd2 {[%clk 0:03:00]} 9... Bd7 {[%clk 0:02:48]}
10. Bb5 {[%clk 0:02:59.7]} 10... Qc7 {[%clk 0:02:30.6]} 11. O-O {[%clk
0:02:57.9]} 11... Ng6 {[%clk 0:02:25]} 12. Bc1 {[%clk 0:02:53.9]} 12... Na5
{[%clk 0:02:12.6]} 13. Ba3 {[%clk 0:02:40.7]} 13... b6 {[%clk 0:02:03]} 14.
Bxd7+ {[%clk 0:02:33.7]} 14... Kxd7 {[%clk 0:01:58.5]} 15. Ng5 {[%clk
0:02:24.8]} 15... Raf8 {[%clk 0:01:58.5]} 16. f4 {[%clk 0:02:16]} 16... Nc4
{[%clk 0:01:18.3]} 17. Qd3 {[%clk 0:01:31.5]} 17... Ne7 {[%clk 0:01:07.5]} 18.
Nxh7 {[%clk 0:01:23.5]} 18... Rc8 {[%clk 0:00:38.5]} 19. Ng5 {[%clk 0:01:20.7]}
19... Ke8 {[%clk 0:00:32.3]} 20. Bc1 {[%clk 0:01:04.1]} 20... Nf5 {[%clk
0:00:20.1]} 21. g4 {[%clk 0:00:56.1]} 21... Nh4 {[%clk 0:00:20.1]} 22. f5 {[%clk
0:00:56]} 22... Qe7 {[%clk 0:00:19.7]} 23. fxe6 {[%clk 0:00:54.8]} 23... fxe6
{[%clk 0:00:17.2]} 24. Rf7 {[%clk 0:00:49.4]} 24... Qxf7 {[%clk 0:00:17.6]} 25.
Nxf7 {[%clk 0:00:48.9]} 25... Kxf7 {[%clk 0:00:18.5]} 26. Bg5 {[%clk 0:00:48.4]}
26... Kg8 {[%clk 0:00:11.4]} 27. Rf1 {[%clk 0:00:45.6]} 27... cxd4 {[%clk
0:00:10.1]} 28. cxd4 {[%clk 0:00:44.5]} 28... Nb2 {[%clk 0:00:07.1]} 29. Qb5
{[%clk 0:00:40.2]} 29... Rxc2 {[%clk 0:00:05.4]} 30. Qe8+ {[%clk 0:00:39.9]}
30... Kh7 {[%clk 0:00:05.8]} 31. Qh5+ {[%clk 0:00:39.9]} 31... Kg8 {[%clk
0:00:06.1]} 32. Qf7+ {[%clk 0:00:39.9]} 32... Kh7 {[%clk 0:00:06.7]} 33. Bxh4
{[%clk 0:00:40]} 33... Nd3 {[%clk 0:00:06.6]} 34. Bf6 {[%clk 0:00:38.5]} 34...
Rg8 {[%clk 0:00:06.4]} 35. Qh5# {[%clk 0:00:38.4]} 1-0

[Event "*** Titled Tuesday Blitz"]
[Site "Chess.com"]
[Date "2020.04.07"]
[Round "7"]
[White "maxip32"]
[Black "TheBigBadChessDad"]
[Result "0-1"]
[WhiteElo "2455"]
[BlackElo "2283"]
[TimeControl "180+1"]
[EndTime "14:18:33 PDT"]
[Termination "TheBigBadChessDad won on time"]

1. e4 {[%clk 0:03:00.9]} 1... e5 {[%clk 0:02:59.7]} 2. Nf3 {[%clk 0:03:00.9]}
2... Nf6 {[%clk 0:02:59.9]} 3. Nxe5 {[%clk 0:03:00.2]} 3... d6 {[%clk
0:02:59.8]} 4. Nf3 {[%clk 0:03:00.3]} 4... Nxe4 {[%clk 0:03:00.1]} 5. Nc3 {[%clk
0:02:56.1]} 5... Nxc3 {[%clk 0:03:00.2]} 6. dxc3 {[%clk 0:02:57]} 6... Be7
{[%clk 0:02:59.4]} 7. Bf4 {[%clk 0:02:55.3]} 7... Nd7 {[%clk 0:02:59.5]} 8. Qd2
{[%clk 0:02:55.3]} 8... O-O {[%clk 0:02:59.7]} 9. O-O-O {[%clk 0:02:54.3]} 9...
Re8 {[%clk 0:03:00.2]} 10. h4 {[%clk 0:02:52.5]} 10... Nf6 {[%clk 0:03:00]} 11.
Bd3 {[%clk 0:02:50.6]} 11... d5 {[%clk 0:02:50.6]} 12. Rde1 {[%clk 0:02:43.7]}
12... c5 {[%clk 0:02:45.7]} 13. c4 {[%clk 0:02:11.7]} 13... d4 {[%clk
0:02:37.5]} 14. Ng5 {[%clk 0:02:06.3]} 14... h6 {[%clk 0:02:34.1]} 15. Ne4
{[%clk 0:01:40.2]} 15... Be6 {[%clk 0:02:13.1]} 16. Bxh6 {[%clk 0:01:23.6]}
16... Nxe4 {[%clk 0:02:11.2]} 17. Bxe4 {[%clk 0:01:18.8]} 17... Bxc4 {[%clk
0:02:00.1]} 18. Rh3 {[%clk 0:01:06.3]} 18... Bf6 {[%clk 0:01:42.5]} 19. Rg3
{[%clk 0:00:58.3]} 19... Kf8 {[%clk 0:01:31.4]} 20. Bg5 {[%clk 0:00:43.4]} 20...
Qd6 {[%clk 0:01:04.6]} 21. b3 {[%clk 0:00:29.9]} 21... Ba6 {[%clk 0:00:59.8]}
22. Rf3 {[%clk 0:00:19.5]} 22... Re6 {[%clk 0:00:55.1]} 23. h5 {[%clk
0:00:17.4]} 23... Rae8 {[%clk 0:00:43.8]} 24. Bxf6 {[%clk 0:00:17.5]} 24... Rxf6
{[%clk 0:00:42.2]} 25. Rxf6 {[%clk 0:00:16.8]} 25... Qxf6 {[%clk 0:00:38.6]} 26.
f3 {[%clk 0:00:16.4]} 26... Qh6 {[%clk 0:00:33.6]} 27. Qxh6 {[%clk 0:00:15.6]}
27... gxh6 {[%clk 0:00:34.5]} 28. Kd2 {[%clk 0:00:16.1]} 28... b6 {[%clk
0:00:30]} 29. g4 {[%clk 0:00:16.2]} 29... Bc8 {[%clk 0:00:25.9]} 30. a4 {[%clk
0:00:11.1]} 30... Kg7 {[%clk 0:00:25.2]} 31. Ra1 {[%clk 0:00:06.8]} 31... a5
{[%clk 0:00:25.2]} 32. Re1 {[%clk 0:00:05.7]} 32... Kf6 {[%clk 0:00:25.2]} 33.
Kd3 {[%clk 0:00:04.2]} 33... Kg5 {[%clk 0:00:24.8]} 34. Rf1 {[%clk 0:00:03.2]}
34... Ba6+ {[%clk 0:00:24.7]} 0-1